bitfinex-derivatives/quotes_BNBF0:USTF0_20260110
["timestamp","ask_amount","ask_price","bid_price","bid_amount"]
[1768083132596,0.19238264,904.76,903.77,0.68416238]
[1768083132796,0.19238264,904.76,903.78,0.68416238]
[1768083133093,0.19238264,904.76,903.79,0.68416238]
[1768083133297,0.19238264,904.76,903.8,0.68416238]
[1768083133495,0.19238264,904.76,903.81,0.68416238]
[1768083133694,0.19238264,904.76,903.82,0.68416238]
[1768083133892,0.19238264,904.76,903.83,0.68416238]
[1768083134197,0.19238264,904.76,903.84,0.68416238]
[1768083134396,0.19238264,904.76,903.85,0.68416238]
[1768083134697,0.19238264,904.76,903.86,0.68416238]
[1768083134895,0.19238264,904.76,903.87,0.68416238]
[1768083135096,0.19238264,904.76,903.88,0.68416238]
[1768083135394,0.19238264,904.76,903.89,0.68416238]
[1768083135597,0.19238264,904.76,903.9,0.68416238]
[1768083135798,0.19238264,904.76,903.91,0.68416238]
[1768083135994,0.19238264,904.76,903.92,0.68416238]
[1768083136194,0.19238264,904.76,903.93,0.68416238]
[1768083136494,0.19238264,904.76,903.94,0.68416238]
[1768083136698,0.19238264,904.76,903.95,0.68416238]
[1768083136996,0.19238264,904.76,903.96,0.68416238]
[1768083137197,0.19238264,904.76,903.97,0.68416238]
[1768083137393,0.19238264,904.76,903.98,0.68416238]
[1768083137599,0.19238264,904.76,903.69,0.82630214]
[1768083137797,0.19238264,904.76,903.7,0.68472539]
[1768083137996,0.19238264,904.76,903.71,0.68472539]
[1768083138198,0.19238264,904.76,903.72,0.68472539]
[1768083138400,0.19238264,904.76,903.73,0.68472539]
[1768083138599,0.19238264,904.76,903.74,0.68472539]
[1768083138899,0.19238264,904.76,903.75,0.68472539]
[1768083139099,0.19238264,904.76,903.76,0.68472539]
[1768083139400,0.19238264,904.76,903.77,0.68472539]
[1768083139597,0.19238264,904.76,903.78,0.68472539]
[1768083139902,0.19238264,904.76,903.79,0.68472539]
[1768083140197,0.19238264,904.76,903.8,0.68472539]
[1768083140401,0.19238264,904.76,903.81,0.68472539]
[1768083140596,0.19238264,904.76,903.82,0.68472539]
[1768083140798,0.19238264,904.76,903.83,0.68472539]
[1768083141101,0.19238264,904.76,903.84,0.68472539]
[1768083141298,0.19238264,904.76,903.85,0.68472539]
[1768083141498,0.19238264,904.76,903.86,0.68472539]
[1768083141796,0.19238264,904.76,903.87,0.68472539]
[1768083142004,0.19238264,904.76,903.88,0.68472539]
[1768083142202,0.19238264,904.76,903.89,0.68472539]
[1768083142499,0.19238264,904.76,903.9,0.68472539]
[1768083142697,0.19238264,904.76,903.91,0.68472539]
[1768083142901,0.19238264,904.76,903.92,0.68472539]
[1768083143100,0.19238264,904.76,903.93,0.68472539]
[1768083143301,0.19238264,904.76,903.94,0.68472539]
[1768083143504,0.19238264,904.76,903.95,0.68472539]
[1768083143803,0.19238264,904.76,903.96,0.68472539]
[1768083144002,0.19238264,904.76,903.97,0.68472539]
[1768083144202,0.19238264,904.76,903.98,0.68472539]
[1768083144400,0.19238264,904.76,903.99,0.68472539]
[1768083144605,0.19238264,904.76,904.0,0.68472539]
[1768083144803,0.19238264,904.76,904.01,0.68472539]
[1768083145005,0.19238264,904.76,904.02,0.68472539]
[1768083145204,0.19238264,904.76,904.03,0.68472539]
[1768083145402,0.19238264,904.76,904.04,0.68472539]
[1768083145707,0.19238264,904.76,903.75,0.82630214]
[1768083145902,0.19238264,904.76,903.76,0.68642424]
[1768083146105,0.19238264,904.76,903.75,0.82630214]
[1768083146106,0.19238264,904.76,903.77,0.68642424]
[1768083146306,0.19238264,904.76,903.78,0.68642424]
[1768083146607,0.19238264,904.76,903.79,0.68642424]
[1768083146806,0.19238264,904.76,903.8,0.68642424]
[1768083147006,0.19238264,904.76,903.81,0.68642424]
[1768083147205,0.19238264,904.76,903.82,0.68642424]
[1768083147502,0.19238264,904.76,903.83,0.68642424]
[1768083147701,0.19238264,904.76,903.84,0.68642424]
[1768083147905,0.19238264,904.76,903.85,0.68642424]
[1768083148106,0.19238264,904.76,903.86,0.68642424]
[1768083148405,0.19238264,904.76,903.87,0.68642424]
[1768083148602,0.19238264,904.76,903.88,0.68642424]
[1768083148803,0.19238264,904.76,903.89,0.68642424]
[1768083149003,0.19238264,904.76,903.9,0.68642424]
[1768083149204,0.19238264,904.76,903.91,0.68642424]
[1768083149405,0.19238264,904.76,903.92,0.68642424]
[1768083149604,0.19238264,904.76,903.93,0.68642424]
[1768083149903,0.19238264,904.76,903.94,0.68642424]
[1768083150203,0.19238264,904.76,903.95,0.68642424]
[1768083150407,0.19238264,904.76,903.96,0.68642424]
[1768083150604,0.19238264,904.76,903.97,0.68642424]
[1768083150908,0.19238264,904.76,903.98,0.68642424]
[1768083151106,0.19238264,904.76,903.99,0.68642424]
[1768083151306,0.19238264,904.76,904.0,0.68642424]
[1768083151507,0.19238264,904.76,904.01,0.68642424]
[1768083151708,0.19238264,904.76,904.02,0.68642424]
[1768083151907,0.19238264,904.76,904.03,0.68642424]
[1768083152105,0.19238264,904.76,904.04,0.68642424]
[1768083152404,0.19238264,904.76,903.75,0.82630214]
[1768083152709,0.19238264,904.76,903.76,0.68642408]
[1768083153008,0.19238264,904.76,903.77,0.68642408]
[1768083153210,0.19238264,904.76,903.78,0.68642408]
[1768083153410,0.19238264,904.76,903.79,0.68642408]
[1768083153610,0.19238264,904.76,903.8,0.68642408]
[1768083153906,0.19238264,904.76,903.81,0.68642408]
[1768083154112,0.19238264,904.76,903.82,0.68642408]
[1768083154309,0.19238264,904.76,903.83,0.68642408]
[1768083154510,0.19238264,904.76,903.84,0.68642408]
[1768083154710,0.19238264,904.76,903.85,0.68642408]
[1768083155010,0.19238264,904.76,903.86,0.68642408]
[1768083155210,0.19238264,904.76,903.87,0.68642408]
[1768083155409,0.19238264,904.76,903.77,0.82630214]
[1768083155410,0.19238264,904.76,903.88,0.68642408]
[1768083155611,0.19238264,904.76,903.89,0.68642408]
[1768083155809,0.19238264,904.76,903.9,0.68642408]
[1768083156109,0.19238264,904.76,903.91,0.68642408]
[1768083156310,0.19238264,904.76,903.92,0.68642408]
[1768083156510,0.19238264,904.76,903.93,0.68642408]
[1768083156811,0.19238264,904.76,903.94,0.68642408]
[1768083157011,0.19238264,904.76,903.95,0.68642408]
[1768083157212,0.19238264,904.76,903.96,0.68642408]
[1768083157409,0.19238264,904.76,903.97,0.68642408]
[1768083157608,0.19238264,904.76,903.98,0.68642408]
[1768083157911,0.19238264,904.76,903.99,0.68642408]
[1768083158109,0.19238264,904.76,904.0,0.68642408]
[1768083158307,0.19238264,904.76,904.01,0.68642408]
[1768083158508,0.19238264,904.76,904.02,0.68642408]
[1768083158712,0.19238264,904.76,904.03,0.68642408]
[1768083158915,0.19238264,904.76,904.04,0.68642408]
[1768083159108,0.19238264,904.76,903.77,0.82630214]
[1768083159109,0.19238264,904.76,904.05,0.68642408]
[1768083159310,0.19238264,904.76,904.06,0.68642408]
[1768083159513,0.19238264,904.76,903.77,0.82630214]
[1768083159812,0.19238264,904.76,903.78,0.68642397]
[1768083160013,0.19238264,904.76,903.79,0.68642397]
[1768083160313,0.19238264,904.76,903.8,0.68642397]
[1768083160608,0.19238264,904.76,903.81,0.68642397]
[1768083160812,0.19238264,904.76,903.82,0.68642397]
[1768083161010,0.19238264,904.76,903.83,0.68642397]
[1768083161208,0.19238264,904.76,903.84,0.68642397]
[1768083161511,0.19238264,904.76,903.85,0.68642397]
[1768083161709,0.19238264,904.76,903.86,0.68642397]
[1768083161914,0.19238264,904.76,903.87,0.68642397]
[1768083162113,0.19238264,904.76,903.88,0.68642397]
[1768083162308,0.19238264,904.76,903.89,0.68642397]
[1768083162512,0.19238264,904.76,903.9,0.68642397]
[1768083162709,0.19238264,904.76,903.91,0.68642397]
[1768083163013,0.19238264,904.76,903.92,0.68642397]
[1768083163212,0.19238264,904.76,903.93,0.68642397]
[1768083163411,0.19238264,904.76,903.94,0.68642397]
[1768083163612,0.19238264,904.76,903.95,0.68642397]
[1768083163808,0.19238264,904.76,903.63,14.26467578]
[1768083164814,0.19238264,904.76,903.64,0.68594731]
[1768083165113,0.19238264,904.76,903.65,0.68594731]
[1768083165314,0.19238264,904.76,903.66,0.68594731]
[1768083165515,0.19238264,904.76,903.67,0.68594731]
[1768083165715,0.19238264,904.76,903.68,0.68594731]
[1768083166015,0.19238264,904.76,903.69,0.68594731]
[1768083166213,0.19238264,904.76,903.7,0.68594731]
[1768083166411,0.19238264,904.76,903.71,0.68594731]
[1768083166614,0.19238264,904.76,903.72,0.68594731]
[1768083166813,0.19238264,904.76,903.73,0.68594731]
[1768083167016,0.19238264,904.76,903.74,0.68594731]
[1768083167212,0.19238264,904.76,903.75,0.68594731]
[1768083167416,0.19238264,904.76,903.76,0.68594731]
[1768083167713,0.19238264,904.76,903.77,0.68594731]
[1768083167911,0.19238264,904.76,903.78,0.68594731]
[1768083168112,0.19238264,904.76,903.79,0.68594731]
[1768083168322,0.19238264,904.76,903.8,0.68594731]
[1768083168617,0.19238264,904.76,903.81,0.68594731]
[1768083168917,0.19238264,904.76,903.82,0.68594731]
[1768083169115,0.19238264,904.76,903.83,0.68594731]
[1768083169313,0.19238264,904.76,903.84,0.68594731]
[1768083169617,0.19238264,904.76,903.85,0.68594731]
[1768083169812,0.19238264,904.76,903.63,14.26467578]
[1768083170116,0.19238264,904.76,903.64,0.6853221]
[1768083170313,0.19238264,904.76,903.65,0.6853221]
[1768083170514,0.19238264,904.76,903.66,0.6853221]
[1768083170716,0.19238264,904.76,903.67,0.6853221]
[1768083171014,0.19238264,904.76,903.68,0.6853221]
[1768083171213,0.19238264,904.76,903.69,0.6853221]
[1768083171517,0.19238264,904.76,903.7,0.6853221]
[1768083171712,0.19238264,904.76,903.71,0.6853221]
[1768083171918,0.19238264,904.76,903.72,0.6853221]
[1768083172115,0.19238264,904.76,903.73,0.6853221]
[1768083172419,0.19238264,904.76,903.74,0.6853221]
[1768083172619,0.19238264,904.76,903.75,0.6853221]
[1768083172817,0.19238264,904.76,903.76,0.6853221]
[1768083173016,0.19238264,904.76,903.77,0.6853221]
[1768083173316,0.19238264,904.76,903.78,0.6853221]
[1768083173620,0.19238264,904.76,903.79,0.6853221]
[1768083173821,0.19238264,904.76,903.8,0.6853221]
[1768083174022,0.19238264,904.76,903.81,0.6853221]
[1768083174317,0.19238264,904.76,903.82,0.6853221]
[1768083174520,0.19238264,904.76,903.83,0.6853221]
[1768083174717,0.19238264,904.76,903.84,0.6853221]
[1768083174921,0.19238264,904.76,903.63,14.26467578]
[1768083175120,0.19238264,904.76,903.64,0.68502095]
[1768083175317,0.19238264,904.76,903.65,0.68502095]
[1768083175518,0.19238264,904.76,903.66,0.68502095]
[1768083175823,0.19238264,904.76,903.67,0.68502095]
[1768083176121,0.19238264,904.76,903.68,0.68502095]
[1768083176322,0.19238264,904.76,903.69,0.68502095]
[1768083176522,0.19238264,904.76,903.7,0.68502095]
[1768083176822,0.19238264,904.76,903.71,0.68502095]
[1768083177122,0.19238264,904.76,903.72,0.68502095]
[1768083177321,0.19238264,904.76,903.73,0.68502095]
[1768083177519,0.19238264,904.76,903.74,0.68502095]
[1768083177720,0.19238264,904.76,903.75,0.68502095]
[1768083177919,0.19238264,904.76,903.76,0.68502095]
[1768083178119,0.19238264,904.76,903.77,0.68502095]
[1768083178318,0.19238264,904.76,903.78,0.68502095]
[1768083178617,0.19238264,904.76,903.79,0.68502095]
[1768083178820,0.19238264,904.76,903.8,0.68502095]
[1768083179022,0.19238264,904.76,903.81,0.68502095]
[1768083179219,0.19238264,904.76,903.82,0.68502095]
[1768083179418,0.19238264,904.76,903.83,0.68502095]
[1768083179618,0.19238264,904.76,903.63,14.26467578]
[1768083179921,0.19238264,904.76,903.64,0.68377271]
[1768083180121,0.19238264,904.76,903.65,0.68377271]
[1768083180319,0.19238264,904.76,903.51,3.048]
[1768083188325,4.96985625,905.04,903.51,3.048]
[1768083188522,0.19241934,904.87,903.51,3.048]
[1768083188726,0.19241934,904.87,903.52,0.82630214]
[1768083188923,4.96985625,905.04,903.5,0.82630214]
[1768083189128,4.96985625,905.04,903.52,0.82630214]
[1768083189423,4.96985625,905.04,903.57,0.82630214]
[1768083190328,4.96985625,905.04,903.56,0.82630214]
[1768083192325,4.96985625,905.04,903.57,2.619]
[1768083234271,4.96985625,905.04,902.63,7.4736989]
[1768083237973,4.96985625,905.04,902.64,2.802]
[1768083242177,4.96985625,905.04,902.64,3.62427627]
[1768083242576,4.96985625,905.04,902.65,0.82227627]
[1768083243475,4.96985625,905.04,902.67,0.82227627]
[1768083243780,4.96985625,905.04,902.72,0.82227627]
[1768083244279,4.96985625,905.04,902.73,0.82227627]
[1768083244478,4.96985625,905.04,902.74,0.82227627]
[1768083244779,4.96985625,905.04,902.75,0.82227627]
[1768083245174,4.96985625,905.04,902.76,0.82227627]
[1768083245676,4.96985625,905.04,902.8,0.82227627]
[1768083246281,4.96985625,905.04,902.81,0.82227627]
[1768083247378,4.96985625,905.04,902.82,0.82227627]
[1768083248278,4.96985625,905.04,902.83,0.82227627]
[1768083249384,4.96985625,905.04,902.84,0.82227627]
[1768083250283,0.19239913,905.06,902.86,0.82227627]
[1768083251184,0.19239913,905.06,902.89,0.82227627]
[1768083252286,0.19239913,905.06,902.9,0.82227627]
[1768083253284,0.19239913,905.06,902.92,0.82227627]
[1768083254285,0.19239913,905.06,902.94,0.82227627]
[1768083255183,0.19239913,905.06,902.95,0.82227627]
[1768083256283,0.19239913,905.06,902.96,0.82227627]
[1768083257291,0.19239913,905.06,902.97,0.82227627]
[1768083257787,2.73162362,905.04,902.97,0.82227627]
[1768083258284,2.73162362,905.04,902.98,0.82227627]
[1768083258583,2.73162362,905.02,902.98,0.82227627]
[1768083259187,2.73162362,905.02,902.81,1.10220919]
[1768083259485,2.73162362,905.01,902.98,0.82846137]
[1768083260185,2.73162362,905.01,902.97,0.82846137]
[1768083260383,2.73162362,905.0,902.98,0.82846137]
[1768083261387,2.73162362,904.99,902.98,0.82846137]
[1768083263490,2.73162362,904.98,902.98,0.82846137]
[1768083263685,2.73162362,904.98,902.97,0.82846137]
[1768083264384,2.73162362,904.97,902.97,0.82846137]
[1768083266385,2.73162362,904.97,902.98,0.82846137]
[1768083266689,2.73162362,904.96,902.98,0.82846137]
[1768083271393,2.73162362,904.96,902.99,2.132]
[1768083271593,0.19239913,905.06,902.99,2.132]
[1768083271594,2.73162362,904.86,902.99,2.132]
[1768083272198,2.73162362,904.8,902.99,2.132]
[1768083273201,2.73162362,904.81,902.99,2.132]
[1768083273801,2.73162362,904.73,902.99,2.132]
[1768083275500,2.73162362,904.67,902.99,2.132]
[1768083276298,2.73162362,904.68,902.99,2.132]
[1768083278604,2.73162362,904.69,902.99,2.132]
[1768083279400,2.73162362,904.71,902.99,2.132]
[1768083283108,2.73162362,904.72,902.99,2.132]
[1768083284113,2.73162362,904.69,902.99,2.132]
[1768083286112,2.73162362,904.7,902.99,2.132]
[1768083288211,2.73162362,904.71,902.99,2.132]
[1768083291519,2.73162362,904.71,902.63,7.4736989]
[1768083293418,2.73162362,904.72,902.63,7.4736989]
[1768083293919,2.73162362,904.75,902.63,7.4736989]
[1768083295321,2.73162362,904.75,902.64,2.017]
[1768083299520,2.73162362,904.74,902.64,2.017]
[1768083301123,2.73162362,904.65,902.64,2.017]
[1768083301825,3.82427307,904.95,902.64,2.017]
[1768083301826,2.73162362,904.62,902.64,2.017]
[1768083302323,3.82427307,904.95,902.64,2.017]
[1768083302324,2.73162362,904.51,902.64,2.017]
[1768083302722,2.73162362,904.48,902.64,2.017]
[1768083303226,2.73162362,904.57,902.64,2.017]
[1768083303623,2.73162362,904.6,902.64,2.017]
[1768083304631,2.73162362,904.67,902.64,2.017]
[1768083305027,2.73162362,904.85,902.71,0.82846137]
[1768083305328,2.73162362,904.85,902.72,0.82846137]
[1768083305627,2.73162362,904.84,902.72,0.82846137]
[1768083306729,2.73162362,904.83,902.72,0.82846137]
[1768083307134,2.73162362,904.84,902.73,0.82846137]
[1768083307430,2.73162362,904.84,902.74,0.82846137]
[1768083308729,2.73162362,904.83,902.74,0.82846137]
[1768083309230,2.73162362,904.83,902.75,0.82846137]
[1768083310236,2.73162362,904.82,902.75,0.82846137]
[1768083311135,2.73162362,904.82,902.76,0.82846137]
[1768083311432,2.73162362,904.81,902.76,0.82846137]
[1768083312233,2.73162362,904.81,902.79,0.82846137]
[1768083312536,2.73162362,904.83,902.79,0.82846137]
[1768083313438,2.73162362,904.82,902.8,0.82846137]
[1768083313638,2.73162362,904.82,902.79,0.82846137]
[1768083313834,2.73162362,904.79,902.77,0.82846137]
[1768083314340,2.73162362,904.79,902.78,0.82846137]
[1768083314539,2.73162362,904.78,902.78,0.82846137]
[1768083315239,2.73162362,904.78,902.79,0.82846137]
[1768083315444,2.73162362,904.77,902.79,0.82846137]
[1768083316241,2.73162362,904.77,902.81,0.82846137]
[1768083316644,2.73162362,904.76,902.81,0.82846137]
[1768083322248,2.73162362,904.76,902.8,0.82846137]
[1768083323645,2.73162362,904.76,902.81,0.82846137]
[1768083323850,2.73162362,904.77,902.81,0.82846137]
[1768083325553,2.73162362,904.77,902.81,7.21870636]
[1768083325950,2.73162362,904.76,902.81,7.21870636]
[1768083328155,2.73162362,904.76,902.82,2.078]
[1768083328356,2.73162362,904.77,902.82,2.078]
[1768083331060,2.73162362,904.74,902.82,2.078]
[1768083333662,2.73162362,904.71,902.82,2.078]
[1768083338870,2.73162362,904.7,902.82,2.078]
[1768083341872,2.73162362,904.69,902.82,2.078]
[1768083342077,2.73162362,904.69,902.81,7.21870636]
[1768083344080,2.73162362,904.72,902.81,7.21870636]
[1768083345381,2.73162362,904.72,902.82,2.227]
[1768083345682,2.73162362,904.66,902.82,2.227]
[1768083346678,2.73162362,904.65,902.82,2.227]
[1768083347182,2.73162362,904.6,902.82,2.227]
[1768083347680,2.73162362,904.58,902.82,2.227]
[1768083348681,2.73162362,904.57,902.82,2.227]
[1768083349285,2.73162362,904.56,902.82,2.227]
[1768083350182,2.73162362,904.55,902.82,2.227]
[1768083350786,2.73162362,904.53,902.82,2.227]
[1768083351286,2.73162362,904.54,902.82,2.227]
[1768083352385,2.73162362,904.55,902.82,2.227]
[1768083353790,2.73162362,904.48,902.82,2.227]
[1768083354490,2.73162362,904.49,902.82,2.227]
[1768083355391,2.73162362,904.5,902.82,2.227]
[1768083355891,2.73162362,904.57,902.82,2.227]
[1768083357489,2.73162362,904.58,902.82,2.227]
[1768083359394,2.73162362,904.58,902.81,7.21870636]
[1768083362790,2.73162362,904.58,902.82,2.602]
[1768083363794,2.73162362,904.57,902.82,2.602]
[1768083368394,2.73162362,904.63,902.82,2.602]
[1768083371496,2.73162362,904.62,902.82,2.602]
[1768083373598,2.73162362,904.58,902.82,2.602]
[1768083374693,2.73162362,904.57,902.82,2.602]
[1768083379399,2.73162362,904.56,902.82,2.602]
[1768083379999,2.73162362,904.54,902.82,2.602]
[1768083380394,2.73162362,904.53,902.82,2.602]
[1768083383498,2.73162362,904.52,902.82,2.602]
[1768083384000,2.73162362,904.56,902.82,2.602]
[1768083385599,2.73162362,904.54,902.82,2.602]
[1768083386600,2.73162362,904.53,902.82,2.602]
[1768083388800,2.73162362,904.52,902.82,2.602]
[1768083389301,0.19260305,904.1,902.82,2.602]
[1768083405924,0.19260305,904.1,902.57,0.82948591]
[1768083408522,0.19260305,904.1,902.59,0.82948591]
[1768083409525,0.19260305,904.1,902.61,0.82948591]
[1768083409722,0.19260305,904.1,902.61,8.17912765]
[1768083413327,0.19260305,904.1,902.62,0.82948591]
[1768083413528,0.19260305,904.1,902.67,0.82948591]
[1768083413727,0.19260305,904.1,902.68,0.82948591]
[1768083419832,0.19260305,904.1,902.67,0.82948591]
[1768083421032,0.19260305,904.1,902.64,0.82948591]
[1768083421328,0.19260305,904.1,902.61,7.34964174]
[1768083433932,0.19260305,904.1,902.62,2.598]
[1768083457351,5.02971238,904.52,902.62,2.598]
[1768083460849,5.02971238,904.52,902.61,8.17912765]
[1768083461054,0.1926201,904.05,902.61,8.17912765]
[1768083463453,0.1926201,904.05,902.63,0.82948591]
[1768083463854,0.1926201,904.05,902.61,7.34964174]
[1768083464753,0.1926201,904.05,902.62,1.737]
[1768083470163,0.1926201,904.05,902.62,2.56648591]
[1768083471163,0.1926201,904.05,902.63,0.82948591]
[1768083472164,0.1926201,904.05,902.64,0.82948591]
[1768083473065,0.1926201,904.05,902.65,0.82948591]
[1768083473865,0.1926201,904.05,902.71,0.82948591]
[1768083474564,0.1926201,904.05,902.62,1.737]
[1768083474565,0.1926201,904.05,902.73,0.82948591]
[1768083475564,0.1926201,904.05,902.74,0.82948591]
[1768083476065,0.1926201,904.05,902.75,0.82948591]
[1768083476265,0.1926201,904.05,902.84,0.82948591]
[1768083476565,0.1926201,904.05,902.9,0.82948591]
[1768083477165,0.1926201,904.05,902.88,0.82948591]
[1768083478266,0.1926201,904.05,902.86,0.82948591]
[1768083479164,0.1926201,904.05,902.62,1.737]
[1768083479165,0.1926201,904.05,902.85,0.82948591]
[1768083479463,0.1926201,904.05,902.86,0.82948591]
[1768083480069,0.1926201,904.05,902.87,0.82948591]
[1768083480470,0.1926201,904.05,902.94,0.82948591]
[1768083481566,0.1926201,904.05,902.92,0.82948591]
[1768083482365,0.1926201,904.05,902.91,0.82948591]
[1768083483368,0.1926201,904.05,902.9,0.82948591]
[1768083484369,0.1926201,904.05,902.89,0.82948591]
[1768083484774,0.1926201,904.05,902.9,0.82948591]
[1768083485273,0.1926201,904.05,902.89,0.82948591]
[1768083487374,0.1926201,904.05,902.88,0.82948591]
[1768083488477,0.1926201,904.05,902.87,0.82948591]
[1768083488879,5.02971238,904.52,902.92,0.82948591]
[1768083489078,0.19255988,904.18,902.92,0.82948591]
[1768083489373,0.19255988,904.18,902.93,2.226]
[1768083497086,0.19255988,904.18,902.94,0.82948591]
[1768083497283,0.19255988,904.18,902.93,3.05548591]
[1768083501390,0.19255988,904.18,902.93,2.226]
[1768083503191,0.19255988,904.18,902.93,3.05548591]
[1768083503388,0.19255988,904.18,902.93,2.226]
[1768083503692,0.19255988,904.18,902.93,3.05548591]
[1768083507088,0.19255988,904.18,902.94,0.82948591]
[1768083510190,0.19255988,904.18,902.95,0.82948591]
[1768083512095,0.19255988,904.18,902.96,0.82948591]
[1768083513796,0.19255988,904.18,902.95,0.82948591]
[1768083515192,0.19255988,904.18,902.96,0.82948591]
[1768083516097,0.19255988,904.18,902.97,0.82948591]
[1768083517194,0.19255988,904.18,902.98,0.82948591]
[1768083518097,0.19255988,904.18,903.0,0.82948591]
[1768083518796,0.19255988,904.18,903.0,0.8288184]
[1768083519202,0.19255988,904.18,903.01,0.8288184]
[1768083520303,0.19255988,904.18,903.03,0.8288184]
[1768083521098,0.19255988,904.18,903.05,0.8288184]
[1768083523304,0.19255988,904.18,903.06,0.8288184]
[1768083523812,0.19255988,904.18,903.08,0.8288184]
[1768083524209,0.19255988,904.18,903.09,0.8288184]
[1768083528412,0.19255988,904.18,903.1,0.8288184]
[1768083531215,0.19255988,904.18,903.11,0.8288184]
[1768083531417,0.19255988,904.18,903.11,7.95436351]
[1768083531617,0.19255988,904.18,903.12,2.228]
[1768083532519,0.19255988,904.18,903.13,0.8288184]
[1768083533419,2.73162362,905.07,903.28,0.8288184]
[1768083533722,5.1389894,904.36,903.26,0.8288184]
[1768083533919,4.94648011,904.36,903.26,0.8288184]
[1768083534116,5.13901283,904.36,903.26,0.8288184]
[1768083534318,5.13901283,904.36,903.24,0.8288184]
[1768083535825,5.13901283,904.36,903.19,0.8288184]
[1768083536320,5.13901283,904.36,903.18,0.8288184]
[1768083536724,5.13901283,904.36,903.17,0.8288184]
[1768083537921,5.13901283,904.36,903.15,0.8288184]
[1768083541124,5.13901283,904.36,903.12,3.0568184]
[1768083544829,5.13901283,904.36,903.12,2.228]
[1768083563739,5.13901283,904.36,903.11,7.95436351]
[1768083563936,5.13901283,904.36,903.11,7.12554511]
[1768083567841,5.13901283,904.36,903.12,2.01]
[1768083573744,5.13901283,904.36,903.12,2.8388184]
[1768083580446,5.13901283,904.36,903.13,0.8288184]
[1768083584253,5.13901283,904.36,903.14,0.8288184]
[1768083584653,5.13901283,904.36,903.13,0.8288184]
[1768083584853,5.13901283,904.36,903.12,2.01]
[1768083584854,5.13901283,904.36,903.14,0.8288184]
[1768083585450,5.13901283,904.36,903.13,0.8288184]
[1768083595361,5.13901283,904.36,903.14,0.8288184]
[1768083595960,5.13901283,904.36,903.13,0.8288184]
[1768083598462,5.13901283,904.36,903.14,0.8288184]
[1768083598766,5.13901283,904.36,903.13,0.8288184]
[1768083599066,5.13901283,904.36,903.12,2.01]
[1768083617572,4.94648011,904.36,903.12,2.01]
[1768083617975,0.19256894,904.09,903.12,2.01]
[1768083623983,0.19256894,904.09,903.11,7.12554511]
[1768083627391,4.94648011,904.36,903.12,2.535]
[1768083627591,0.19256947,904.09,903.12,2.535]
[1768083647500,0.19256947,904.09,903.11,7.12554511]
[1768083651009,0.19256947,904.09,903.12,2.652]
[1768083702031,0.19256947,904.09,902.54,0.8288184]
[1768083702233,0.19256947,904.09,902.55,0.6854547]
[1768083702435,0.19256947,904.09,902.56,0.6854547]
[1768083702634,0.19256947,904.09,902.57,0.6854547]
[1768083702831,0.19256947,904.09,902.58,0.6854547]
[1768083703031,0.19256947,904.09,902.59,0.6854547]
[1768083703233,0.19256947,904.09,902.6,0.6854547]
[1768083703432,0.19256947,904.09,902.61,0.6854547]
[1768083703731,0.19256947,904.09,902.62,0.6854547]
[1768083703933,0.19256947,904.09,902.63,0.6854547]
[1768083704136,0.19256947,904.09,902.64,0.6854547]
[1768083704335,0.19256947,904.09,902.59,7.37430575]
[1768083704336,0.19256947,904.09,902.65,0.6854547]
[1768083704534,0.19256947,904.09,902.66,0.6854547]
[1768083704837,0.19256947,904.09,902.67,0.6854547]
[1768083705037,0.19256947,904.09,902.68,0.6854547]
[1768083705236,0.19256947,904.09,902.69,0.6854547]
[1768083705438,0.19256947,904.09,902.7,0.6854547]
[1768083705635,0.19256947,904.09,902.71,0.6854547]
[1768083705840,0.19256947,904.09,902.72,0.6854547]
[1768083706039,0.19256947,904.09,902.73,0.6854547]
[1768083706340,0.19256947,904.09,902.74,0.6854547]
[1768083706539,0.19256947,904.09,902.75,0.6854547]
[1768083706735,0.19256947,904.09,902.76,0.6854547]
[1768083706940,0.19256947,904.09,902.77,0.6854547]
[1768083707135,0.19256947,904.09,902.78,0.6854547]
[1768083707336,0.19256947,904.09,902.79,0.6854547]
[1768083707537,0.19256947,904.09,902.59,7.37430575]
[1768083707837,0.19256947,904.09,902.6,0.68539738]
[1768083708039,0.19256947,904.09,902.61,0.68539738]
[1768083708241,0.19256947,904.09,902.62,0.68539738]
[1768083708438,0.19256947,904.09,902.63,0.68539738]
[1768083708641,0.19256947,904.09,902.64,0.68539738]
[1768083708941,0.19256947,904.09,902.65,0.68539738]
[1768083709137,0.19256947,904.09,902.66,0.68539738]
[1768083709441,0.19256947,904.09,902.67,0.68539738]
[1768083709736,0.19256947,904.09,902.68,0.68539738]
[1768083710038,0.19256947,904.09,902.69,0.68539738]
[1768083710238,0.19256947,904.09,902.7,0.68539738]
[1768083710436,0.19256947,904.09,902.71,0.68539738]
[1768083710639,0.19256947,904.09,902.72,0.68539738]
[1768083710839,0.19256947,904.09,902.73,0.68539738]
[1768083711040,0.19256947,904.09,902.74,0.68539738]
[1768083711338,0.19256947,904.09,902.75,0.68539738]